[Event "Meltwater Champions Chess Tour 2022: Chessable Masters | Prelims"]
[White "Vidit, Santosh Gujrathi"]
[Black "Wei, Yi"]
[WhiteFideId "5029465"]
[BlackFideId "8603405"]
[WhiteElo "2617"]
[BlackElo "2752"]
[Result "1-0"]
[Round "11"]
[TimeControl "900+10"]
[Date "2022.05.21"]
[WhiteClock "0:00:37"]
[BlackClock "0:00:08"]

1. e4 {[%clk 0:15:20]}  c5 {[%clk 0:15:20]} 2. Nf3 {[%clk 0:15:27]}  d6 {[%clk 0:15:27]} 3. d4 {[%clk 0:15:35]}  cxd4 {[%clk 0:15:36]} 4. Nxd4 {[%clk 0:15:44]}  Nf6 {[%clk 0:15:46]} 5. Nc3 {[%clk 0:15:53]}  a6 {[%clk 0:15:55]} 6. Qd3 {[%clk 0:16:00]}  Nbd7 {[%clk 0:15:56]} 7. Be2 {[%clk 0:15:30]}  b5 {[%clk 0:12:49]} 8. Nd5 {[%clk 0:15:25]}  Bb7 {[%clk 0:11:42]} 9. a4 {[%clk 0:15:32]}  Nc5 {[%clk 0:10:10]} 10. Nxf6+ {[%clk 0:15:39]}  gxf6 {[%clk 0:10:18]} 11. Qe3 {[%clk 0:15:46]}  bxa4 {[%clk 0:10:14]} 12. f3 {[%clk 0:15:54]}  h5 {[%clk 0:10:10]} 13. Qf2 {[%clk 0:15:52]}  e6 {[%clk 0:08:01]} 14. O-O {[%clk 0:15:36]}  Qb6 {[%clk 0:08:02]} 15. b3 {[%clk 0:12:58]}  axb3 {[%clk 0:08:10]} 16. Nxb3 {[%clk 0:12:39]}  Bh6 {[%clk 0:07:49]} 17. Bxh6 {[%clk 0:12:29]}  Rxh6 {[%clk 0:07:58]} 18. Rfb1 {[%clk 0:11:38]}  Qc7 {[%clk 0:08:06]} 19. Nxc5 {[%clk 0:11:19]}  dxc5 {[%clk 0:08:15]} 20. Qg3 {[%clk 0:11:03]}  Qxg3 {[%clk 0:06:24]} 21. hxg3 {[%clk 0:11:13]}  Bc8 {[%clk 0:04:26]} 22. Ra5 {[%clk 0:10:37]}  h4 {[%clk 0:04:27]} 23. gxh4 {[%clk 0:10:31]}  Rxh4 {[%clk 0:04:28]} 24. Rxc5 {[%clk 0:10:35]}  a5 {[%clk 0:02:41]} 25. Rc7 {[%clk 0:08:38]}  Rh7 {[%clk 0:02:14]} 26. Bb5+ {[%clk 0:05:01]}  Kd8 {[%clk 0:02:23]} 27. Rc5 {[%clk 0:04:59]}  Ra7 {[%clk 0:01:06]} 28. Rd1+ {[%clk 0:04:18]}  Bd7 {[%clk 0:01:15]} 29. Bxd7 {[%clk 0:03:58]}  Rxd7 {[%clk 0:01:24]} 30. Rxd7+ {[%clk 0:04:04]}  Kxd7 {[%clk 0:01:33]} 31. Rxa5 {[%clk 0:04:14]}  Kd6 {[%clk 0:01:38]} 32. Ra7 {[%clk 0:04:13]}  Ke5 {[%clk 0:01:26]} 33. Kf2 {[%clk 0:04:12]}  f5 {[%clk 0:00:40]} 34. Ra5+ {[%clk 0:03:12]}  Kf6 {[%clk 0:00:49]} 35. exf5 {[%clk 0:03:21]}  e5 {[%clk 0:00:58]} 36. Ke3 {[%clk 0:02:24]}  Rh2 {[%clk 0:01:07]} 37. Kf2 {[%clk 0:00:41]}  Kxf5 {[%clk 0:01:14]} 38. Ra1 {[%clk 0:00:16]}  Ke6 {[%clk 0:00:34]} 39. Ra6+ {[%clk 0:00:14]}  Kf5 {[%clk 0:00:38]} 40. c4 {[%clk 0:00:16]}  Rh1 {[%clk 0:00:32]} 41. Ke3 {[%clk 0:00:15]}  Rc1 {[%clk 0:00:22]} 42. Kd3 {[%clk 0:00:14]}  Kg5 {[%clk 0:00:19]} 43. Ra2 {[%clk 0:00:20]}  Kf5 {[%clk 0:00:11]} 44. Rc2 {[%clk 0:00:28]}  Rd1+ {[%clk 0:00:17]} 45. Ke3 {[%clk 0:00:36]}  Ke6 {[%clk 0:00:16]} 46. c5 {[%clk 0:00:43]}  Rd8 {[%clk 0:00:11]} 47. g4 {[%clk 0:00:25]}  Rc8 {[%clk 0:00:12]} 48. c6 {[%clk 0:00:32]}  Kd5 {[%clk 0:00:11]} 49. c7 {[%clk 0:00:33]}  f6 {[%clk 0:00:08]} 50. Rc1 {[%clk 0:00:37]} 1-0


[Site "http://www.chessbomb.com"]

[Event "Meltwater Champions Chess Tour 2022: Chessable Masters | Prelims"]
[White "Carlsen, Magnus"]
[Black "Wei, Yi"]
[WhiteFideId "1503014"]
[BlackFideId "8603405"]
[WhiteElo "2847"]
[BlackElo "2752"]
[Result "1/2-1/2"]
[Round "12"]
[TimeControl "900+10"]
[Date "2022.05.21"]
[WhiteClock "0:02:08"]
[BlackClock "0:03:15"]

1. h4 {[%clk 0:15:20]}  d5 {[%clk 0:15:20]} 2. d4 {[%clk 0:15:22]}  c5 {[%clk 0:15:10]} 3. e3 {[%clk 0:15:25]}  Nc6 {[%clk 0:14:58]} 4. c4 {[%clk 0:15:31]}  e6 {[%clk 0:12:40]} 5. Nf3 {[%clk 0:15:23]}  Nf6 {[%clk 0:12:49]} 6. a3 {[%clk 0:15:00]}  a6 {[%clk 0:12:31]} 7. dxc5 {[%clk 0:15:02]}  Bxc5 {[%clk 0:12:39]} 8. b4 {[%clk 0:15:10]}  Be7 {[%clk 0:12:14]} 9. Bb2 {[%clk 0:15:18]}  dxc4 {[%clk 0:12:17]} 10. Qxd8+ {[%clk 0:15:27]}  Bxd8 {[%clk 0:12:21]} 11. Bxc4 {[%clk 0:15:35]}  b5 {[%clk 0:12:19]} 12. Bd3 {[%clk 0:15:42]}  O-O {[%clk 0:10:27]} 13. Nbd2 {[%clk 0:15:49]}  Be7 {[%clk 0:09:41]} 14. Ke2 {[%clk 0:15:48]}  Bb7 {[%clk 0:09:09]} 15. Rhc1 {[%clk 0:15:15]}  Rfc8 {[%clk 0:07:10]} 16. Nb3 {[%clk 0:14:01]}  Nd7 {[%clk 0:07:15]} 17. Rc2 {[%clk 0:13:24]}  Bd8 {[%clk 0:05:48]} 18. Rd1 {[%clk 0:12:34]}  Rc7 {[%clk 0:05:52]} 19. Be4 {[%clk 0:12:07]}  Nf6 {[%clk 0:04:01]} 20. Bxf6 {[%clk 0:10:14]}  gxf6 {[%clk 0:04:03]} 21. g4 {[%clk 0:07:53]}  Rac8 {[%clk 0:03:49]} 22. h5 {[%clk 0:05:45]}  h6 {[%clk 0:03:01]} 23. Nfd2 {[%clk 0:03:37]}  Ne5 {[%clk 0:01:56]} 24. Rxc7 {[%clk 0:03:39]}  Rxc7 {[%clk 0:02:06]} 25. Bxb7 {[%clk 0:03:32]}  Rxb7 {[%clk 0:02:15]} 26. Nf3 {[%clk 0:03:40]}  Be7 {[%clk 0:01:14]} 27. Nxe5 {[%clk 0:03:46]}  fxe5 {[%clk 0:01:23]} 28. Rc1 {[%clk 0:03:56]}  Kg7 {[%clk 0:01:07]} 29. Rc6 {[%clk 0:03:59]}  Ra7 {[%clk 0:01:16]} 30. Kf3 {[%clk 0:03:51]}  Bd8 {[%clk 0:00:42]} 31. Ke4 {[%clk 0:03:27]}  a5 {[%clk 0:00:37]} 32. Nc5 {[%clk 0:03:08]}  axb4 {[%clk 0:00:42]} 33. axb4 {[%clk 0:03:18]}  Ra2 {[%clk 0:00:34]} 34. Nd3 {[%clk 0:02:12]}  Rd2 {[%clk 0:00:38]} 35. Rc3 {[%clk 0:02:07]}  Bf6 {[%clk 0:00:16]} 36. f3 {[%clk 0:02:01]}  Be7 {[%clk 0:00:14]} 37. Rc7 {[%clk 0:01:59]}  Bd6 {[%clk 0:00:24]} 38. Rb7 {[%clk 0:02:04]}  Kf6 {[%clk 0:00:14]} 39. Rxb5 {[%clk 0:02:05]}  Kg5 {[%clk 0:00:18]} 40. f4+ {[%clk 0:01:30]}  Kxg4 {[%clk 0:00:26]} 41. fxe5 {[%clk 0:01:28]}  Be7 {[%clk 0:00:25]} 42. Rb7 {[%clk 0:01:32]}  Rc2 {[%clk 0:00:19]} 43. Kd4 {[%clk 0:01:36]}  Bg5 {[%clk 0:00:20]} 44. Rxf7 {[%clk 0:01:45]}  Re2 {[%clk 0:00:12]} 45. Nf4 {[%clk 0:01:31]}  Rb2 {[%clk 0:00:20]} 46. Nxe6 {[%clk 0:01:13]}  Rxb4+ {[%clk 0:00:25]} 47. Kc5 {[%clk 0:01:22]}  Re4 {[%clk 0:00:27]} 48. Kd5 {[%clk 0:01:31]}  Rxe3 {[%clk 0:00:32]} 49. Nxg5 {[%clk 0:01:40]}  Kxg5 {[%clk 0:00:41]} 50. e6 {[%clk 0:01:49]}  Kxh5 {[%clk 0:00:31]} 51. Rg7 {[%clk 0:01:31]}  Kh4 {[%clk 0:00:27]} 52. e7 {[%clk 0:01:39]}  h5 {[%clk 0:00:32]} 53. Kd6 {[%clk 0:01:48]}  Rd3+ {[%clk 0:00:12]} 54. Ke6 {[%clk 0:01:57]}  Re3+ {[%clk 0:00:21]} 55. Kf7 {[%clk 0:02:06]}  Rf3+ {[%clk 0:00:14]} 56. Kg8 {[%clk 0:02:15]}  Re3 {[%clk 0:00:24]} 57. Kf8 {[%clk 0:02:24]}  Rf3+ {[%clk 0:00:21]} 58. Rf7 {[%clk 0:00:47]}  Re3 {[%clk 0:00:30]} 59. Rg7 {[%clk 0:00:28]}  Rf3+ {[%clk 0:00:39]} 60. Kg8 {[%clk 0:00:32]}  Re3 {[%clk 0:00:48]} 61. Kf7 {[%clk 0:00:35]}  Rf3+ {[%clk 0:00:57]} 62. Kg6 {[%clk 0:00:39]}  Re3 {[%clk 0:00:59]} 63. Kf5 {[%clk 0:00:45]}  Re1 {[%clk 0:01:00]} 64. Kf6 {[%clk 0:00:18]}  Rf1+ {[%clk 0:01:08]} 65. Ke6 {[%clk 0:00:27]}  Re1+ {[%clk 0:01:17]} 66. Kf7 {[%clk 0:00:36]}  Rf1+ {[%clk 0:01:27]} 67. Kg8 {[%clk 0:00:46]}  Re1 {[%clk 0:01:34]} 68. Kf8 {[%clk 0:00:53]}  Rf1+ {[%clk 0:01:42]} 69. Rf7 {[%clk 0:01:03]}  Re1 {[%clk 0:01:51]} 70. e8=R {[%clk 0:00:46]}  Rxe8+ {[%clk 0:01:59]} 71. Kxe8 {[%clk 0:00:56]}  Kg3 {[%clk 0:02:08]} 72. Rg7+ {[%clk 0:01:05]}  Kf3 {[%clk 0:02:12]} 73. Rh7 {[%clk 0:01:11]}  Kg4 {[%clk 0:02:21]} 74. Ke7 {[%clk 0:01:16]}  h4 {[%clk 0:02:30]} 75. Ke6 {[%clk 0:01:23]}  h3 {[%clk 0:02:37]} 76. Ke5 {[%clk 0:01:32]}  Kg3 {[%clk 0:02:46]} 77. Ke4 {[%clk 0:01:42]}  h2 {[%clk 0:02:48]} 78. Ke3 {[%clk 0:01:51]}  Kg2 {[%clk 0:02:57]} 79. Ke2 {[%clk 0:01:59]}  h1=Q {[%clk 0:03:06]} 80. Rxh1 {[%clk 0:02:08]}  Kxh1 {[%clk 0:03:15]} 1/2-1/2


[Site "http://www.chessbomb.com"]

[Event "Meltwater Champions Chess Tour 2022: Chessable Masters | Prelims"]
[White "Giri, Anish"]
[Black "Vidit, Santosh Gujrathi"]
[WhiteFideId "24116068"]
[BlackFideId "5029465"]
[WhiteElo "2730"]
[BlackElo "2617"]
[Result "1-0"]
[Round "12"]
[TimeControl "900+10"]
[Date "2022.05.21"]
[WhiteClock "0:03:19"]
[BlackClock "0:01:29"]

1. e4 {[%clk 0:15:20]}  e5 {[%clk 0:15:20]} 2. Nf3 {[%clk 0:15:28]}  Nc6 {[%clk 0:15:28]} 3. Bc4 {[%clk 0:15:37]}  Nf6 {[%clk 0:15:35]} 4. d3 {[%clk 0:15:46]}  Bc5 {[%clk 0:15:44]} 5. O-O {[%clk 0:15:56]}  O-O {[%clk 0:15:39]} 6. Nbd2 {[%clk 0:15:48]}  d6 {[%clk 0:15:45]} 7. c3 {[%clk 0:15:58]}  a5 {[%clk 0:15:48]} 8. h3 {[%clk 0:16:07]}  h6 {[%clk 0:15:50]} 9. Re1 {[%clk 0:16:15]}  Be6 {[%clk 0:15:54]} 10. Bb5 {[%clk 0:16:24]}  Bb6 {[%clk 0:15:33]} 11. Nc4 {[%clk 0:16:31]}  Bc5 {[%clk 0:15:40]} 12. Ba4 {[%clk 0:16:39]}  Ne7 {[%clk 0:15:10]} 13. Ncd2 {[%clk 0:16:39]}  Ng6 {[%clk 0:15:07]} 14. d4 {[%clk 0:15:05]}  Ba7 {[%clk 0:15:16]} 15. Bc2 {[%clk 0:15:08]}  Re8 {[%clk 0:13:26]} 16. Nf1 {[%clk 0:15:07]}  exd4 {[%clk 0:13:14]} 17. cxd4 {[%clk 0:14:46]}  d5 {[%clk 0:13:20]} 18. e5 {[%clk 0:14:51]}  Ne4 {[%clk 0:13:30]} 19. Ng3 {[%clk 0:14:47]}  Nxg3 {[%clk 0:13:05]} 20. fxg3 {[%clk 0:14:55]}  c5 {[%clk 0:12:37]} 21. Be3 {[%clk 0:14:53]}  Rc8 {[%clk 0:12:33]} 22. Kh2 {[%clk 0:14:14]}  cxd4 {[%clk 0:09:15]} 23. Bxd4 {[%clk 0:14:21]}  Bxd4 {[%clk 0:08:54]} 24. Nxd4 {[%clk 0:14:31]}  Qb6 {[%clk 0:08:56]} 25. b3 {[%clk 0:13:25]}  Bd7 {[%clk 0:08:10]} 26. e6 {[%clk 0:12:31]}  Bxe6 {[%clk 0:08:17]} 27. Bxg6 {[%clk 0:12:39]}  fxg6 {[%clk 0:08:25]} 28. Nxe6 {[%clk 0:12:48]}  Rxe6 {[%clk 0:08:34]} 29. Qxd5 {[%clk 0:12:58]}  Re8 {[%clk 0:08:32]} 30. Rxe6 {[%clk 0:11:59]}  Qxe6 {[%clk 0:08:36]} 31. Qxa5 {[%clk 0:12:05]}  Qe5 {[%clk 0:05:14]} 32. Qxe5 {[%clk 0:12:11]}  Rxe5 {[%clk 0:05:24]} 33. Rf1 {[%clk 0:11:01]}  b5 {[%clk 0:03:39]} 34. a3 {[%clk 0:02:48]}  Re3 {[%clk 0:02:59]} 35. Rf3 {[%clk 0:02:55]}  Re2 {[%clk 0:02:57]} 36. g4 {[%clk 0:02:50]}  Ra2 {[%clk 0:03:06]} 37. b4 {[%clk 0:02:59]}  g5 {[%clk 0:03:01]} 38. Kg3 {[%clk 0:03:08]}  Rc2 {[%clk 0:00:46]} 39. Re3 {[%clk 0:02:43]}  Kf7 {[%clk 0:00:55]} 40. Kf3 {[%clk 0:02:51]}  Ra2 {[%clk 0:00:22]} 41. g3 {[%clk 0:02:46]}  Kf6 {[%clk 0:00:28]} 42. Ke4 {[%clk 0:02:29]}  Ke6 {[%clk 0:00:35]} 43. h4 {[%clk 0:02:14]}  gxh4 {[%clk 0:00:33]} 44. gxh4 {[%clk 0:02:23]}  g5 {[%clk 0:00:15]} 45. hxg5 {[%clk 0:02:30]}  hxg5 {[%clk 0:00:24]} 46. Rh3 {[%clk 0:02:33]}  Rf2 {[%clk 0:00:14]} 47. Kd4 {[%clk 0:02:17]}  Rc2 {[%clk 0:00:13]} 48. Rh6+ {[%clk 0:01:58]}  Kd7 {[%clk 0:00:18]} 49. Ke5 {[%clk 0:01:56]}  Rc3 {[%clk 0:00:17]} 50. Kf5 {[%clk 0:01:27]}  Rxa3 {[%clk 0:00:26]} 51. Rb6 {[%clk 0:01:36]}  Ra4 {[%clk 0:00:14]} 52. Rxb5 {[%clk 0:01:44]}  Kc6 {[%clk 0:00:23]} 53. Rc5+ {[%clk 0:01:23]}  Kd6 {[%clk 0:00:25]} 54. Rc4 {[%clk 0:01:31]}  Kd5 {[%clk 0:00:28]} 55. Rc1 {[%clk 0:01:33]}  Rxb4 {[%clk 0:00:29]} 56. Rd1+ {[%clk 0:01:43]}  Kc6 {[%clk 0:00:13]} 57. Kxg5 {[%clk 0:01:50]}  Rb2 {[%clk 0:00:15]} 58. Kg6 {[%clk 0:01:55]}  Rg2 {[%clk 0:00:24]} 59. g5 {[%clk 0:02:04]}  Rg3 {[%clk 0:00:33]} 60. Kf6 {[%clk 0:02:13]}  Rf3+ {[%clk 0:00:42]} 61. Kg7 {[%clk 0:02:22]}  Rg3 {[%clk 0:00:52]} 62. g6 {[%clk 0:02:32]}  Rg2 {[%clk 0:01:01]} 63. Kf7 {[%clk 0:02:41]}  Rf2+ {[%clk 0:01:11]} 64. Kg8 {[%clk 0:02:50]}  Rg2 {[%clk 0:01:21]} 65. g7 {[%clk 0:02:59]}  Rg3 {[%clk 0:01:29]} 66. Rf1 {[%clk 0:03:04]}  Kd6 {[%clk 0:01:22]} 67. Kf7 {[%clk 0:03:12]}  Rg1 {[%clk 0:01:29]} 68. Rxg1 {[%clk 0:03:19]} 1-0


[Site "http://www.chessbomb.com"]

[Event "Meltwater Champions Chess Tour 2022: Chessable Masters | Prelims"]
[White "Tari, Aryan"]
[Black "Shankland, Sam"]
[WhiteFideId "1510045"]
[BlackFideId "2004887"]
[WhiteElo "2531"]
[BlackElo "2616"]
[Result "1-0"]
[Round "12"]
[TimeControl "900+10"]
[Date "2022.05.21"]
[WhiteClock "0:05:43"]
[BlackClock "0:06:27"]

1. e4 {[%clk 0:15:20]}  c5 {[%clk 0:15:20]} 2. Nf3 {[%clk 0:15:28]}  e6 {[%clk 0:15:27]} 3. c3 {[%clk 0:14:19]}  Nf6 {[%clk 0:15:33]} 4. e5 {[%clk 0:14:28]}  Nd5 {[%clk 0:15:42]} 5. d4 {[%clk 0:14:38]}  cxd4 {[%clk 0:15:50]} 6. cxd4 {[%clk 0:14:48]}  d6 {[%clk 0:15:57]} 7. Bc4 {[%clk 0:14:57]}  Be7 {[%clk 0:15:57]} 8. O-O {[%clk 0:15:03]}  O-O {[%clk 0:16:06]} 9. Qe2 {[%clk 0:15:12]}  Bd7 {[%clk 0:16:14]} 10. Nc3 {[%clk 0:14:32]}  Nxc3 {[%clk 0:16:21]} 11. bxc3 {[%clk 0:14:41]}  Bc6 {[%clk 0:16:30]} 12. exd6 {[%clk 0:14:46]}  Bxd6 {[%clk 0:16:38]} 13. Ne5 {[%clk 0:14:54]}  Bxe5 {[%clk 0:16:46]} 14. Qxe5 {[%clk 0:13:47]}  Nd7 {[%clk 0:16:53]} 15. Qg3 {[%clk 0:11:50]}  Nf6 {[%clk 0:17:01]} 16. Re1 {[%clk 0:11:02]}  Ne4 {[%clk 0:14:26]} 17. Qd3 {[%clk 0:10:41]}  Qa5 {[%clk 0:12:29]} 18. Bb2 {[%clk 0:09:50]}  Nd6 {[%clk 0:11:38]} 19. Re5 {[%clk 0:09:22]}  Bd5 {[%clk 0:09:50]} 20. Bb3 {[%clk 0:08:51]}  Rac8 {[%clk 0:09:17]} 21. c4 {[%clk 0:08:02]}  f6 {[%clk 0:08:20]} 22. cxd5 {[%clk 0:06:17]}  fxe5 {[%clk 0:08:26]} 23. dxe6 {[%clk 0:06:23]}  Kh8 {[%clk 0:08:20]} 24. e7 {[%clk 0:06:21]}  Rf5 {[%clk 0:07:22]} 25. dxe5 {[%clk 0:05:35]}  Rxe5 {[%clk 0:07:30]} 26. Bxe5 {[%clk 0:05:43]}  Qxe5 {[%clk 0:07:38]} 27. Rd1 {[%clk 0:05:47]}  Rc6 {[%clk 0:06:27]} 28. Qe3 {[%clk 0:05:43]} 1-0


[Site "http://www.chessbomb.com"]

[Event "Meltwater Champions Chess Tour 2022: Chessable Masters | Prelims"]
[White "Grandelius, Nils"]
[Black "Mishra, Abhimanyu"]
[WhiteFideId "1710400"]
[BlackFideId "30920019"]
[WhiteElo "2652"]
[BlackElo "2524"]
[Result "1/2-1/2"]
[Round "12"]
[TimeControl "900+10"]
[Date "2022.05.21"]
[WhiteClock "0:01:55"]
[BlackClock "0:02:35"]

1. Nf3 {[%clk 0:15:20]}  d5 {[%clk 0:15:20]} 2. g3 {[%clk 0:15:28]}  g6 {[%clk 0:15:28]} 3. Bg2 {[%clk 0:15:29]}  Bg7 {[%clk 0:15:36]} 4. d4 {[%clk 0:15:38]}  c6 {[%clk 0:15:45]} 5. a4 {[%clk 0:15:46]}  a5 {[%clk 0:15:41]} 6. O-O {[%clk 0:15:45]}  Nf6 {[%clk 0:15:47]} 7. c4 {[%clk 0:15:53]}  O-O {[%clk 0:15:52]} 8. cxd5 {[%clk 0:15:56]}  Nxd5 {[%clk 0:15:49]} 9. Nc3 {[%clk 0:15:22]}  Nb4 {[%clk 0:14:28]} 10. Bf4 {[%clk 0:14:34]}  Bg4 {[%clk 0:13:49]} 11. Ne5 {[%clk 0:14:09]}  Be6 {[%clk 0:13:42]} 12. h3 {[%clk 0:13:57]}  Nd7 {[%clk 0:13:40]} 13. Nf3 {[%clk 0:14:04]}  Nf6 {[%clk 0:12:39]} 14. Qd2 {[%clk 0:13:14]}  Qb6 {[%clk 0:11:50]} 15. Bh6 {[%clk 0:12:02]}  Bd5 {[%clk 0:10:59]} 16. Bxg7 {[%clk 0:11:28]}  Kxg7 {[%clk 0:11:09]} 17. Nxd5 {[%clk 0:08:31]}  cxd5 {[%clk 0:10:36]} 18. Ne5 {[%clk 0:08:25]}  Rac8 {[%clk 0:09:40]} 19. Rfc1 {[%clk 0:08:24]}  Nc6 {[%clk 0:08:38]} 20. e3 {[%clk 0:08:30]}  e6 {[%clk 0:08:27]} 21. Nd3 {[%clk 0:08:25]}  Nd7 {[%clk 0:07:50]} 22. Bf1 {[%clk 0:07:26]}  Rc7 {[%clk 0:07:08]} 23. Nc5 {[%clk 0:06:10]}  Rfc8 {[%clk 0:06:25]} 24. Nxd7 {[%clk 0:04:53]}  Rxd7 {[%clk 0:06:35]} 25. Rc5 {[%clk 0:04:55]}  Rdc7 {[%clk 0:06:10]} 26. Rac1 {[%clk 0:05:01]}  Nb4 {[%clk 0:05:08]} 27. Rxc7 {[%clk 0:04:34]}  Rxc7 {[%clk 0:05:12]} 28. Bb5 {[%clk 0:04:33]}  Qd6 {[%clk 0:04:10]} 29. Kg2 {[%clk 0:03:29]}  b6 {[%clk 0:03:41]} 30. h4 {[%clk 0:03:08]}  h5 {[%clk 0:03:44]} 31. Rc3 {[%clk 0:03:15]}  Na2 {[%clk 0:03:40]} 32. Rxc7 {[%clk 0:03:04]}  Qxc7 {[%clk 0:03:50]} 33. Kf1 {[%clk 0:03:12]}  Qc1+ {[%clk 0:02:20]} 34. Qxc1 {[%clk 0:03:17]}  Nxc1 {[%clk 0:02:30]} 35. Ke1 {[%clk 0:03:00]}  Kf6 {[%clk 0:02:01]} 36. Kd2 {[%clk 0:03:07]}  Na2 {[%clk 0:02:10]} 37. Kd3 {[%clk 0:02:04]}  Nb4+ {[%clk 0:02:18]} 38. Kc3 {[%clk 0:02:14]}  Na2+ {[%clk 0:02:20]} 39. Kd3 {[%clk 0:02:21]}  Nb4+ {[%clk 0:02:29]} 40. Kc3 {[%clk 0:01:46]}  Na2+ {[%clk 0:02:35]} 41. Kd3 {[%clk 0:01:55]} 1/2-1/2


[Site "http://www.chessbomb.com"]

[Event "Meltwater Champions Chess Tour 2022: Chessable Masters | Prelims"]
[White "Praggnanandhaa, R"]
[Black "Van Foreest, Jorden"]
[WhiteFideId "25059530"]
[BlackFideId "1039784"]
[WhiteElo "1927"]
[BlackElo "2645"]
[Result "1-0"]
[Round "12"]
[TimeControl "900+10"]
[Date "2022.05.21"]
[WhiteClock "0:01:22"]
[BlackClock "0:00:32"]

1. d4 {[%clk 0:15:20]}  Nf6 {[%clk 0:15:20]} 2. c4 {[%clk 0:15:28]}  g6 {[%clk 0:15:29]} 3. Nc3 {[%clk 0:15:37]}  Bg7 {[%clk 0:15:38]} 4. e4 {[%clk 0:15:44]}  d6 {[%clk 0:15:47]} 5. Be2 {[%clk 0:15:52]}  O-O {[%clk 0:15:53]} 6. Be3 {[%clk 0:15:59]}  a5 {[%clk 0:15:40]} 7. h4 {[%clk 0:15:20]}  a4 {[%clk 0:15:17]} 8. a3 {[%clk 0:12:28]}  e5 {[%clk 0:15:25]} 9. d5 {[%clk 0:12:12]}  Nbd7 {[%clk 0:15:28]} 10. h5 {[%clk 0:11:57]}  Nc5 {[%clk 0:15:36]} 11. Bxc5 {[%clk 0:12:01]}  dxc5 {[%clk 0:15:44]} 12. h6 {[%clk 0:11:46]}  Bh8 {[%clk 0:15:52]} 13. Nf3 {[%clk 0:11:53]}  Bd7 {[%clk 0:15:40]} 14. Qc2 {[%clk 0:11:45]}  Ne8 {[%clk 0:15:26]} 15. O-O-O {[%clk 0:11:38]}  Nd6 {[%clk 0:15:34]} 16. Kb1 {[%clk 0:11:37]}  Qe7 {[%clk 0:15:28]} 17. Bd3 {[%clk 0:11:35]}  Ra6 {[%clk 0:15:12]} 18. Qe2 {[%clk 0:11:08]}  Bf6 {[%clk 0:14:28]} 19. Rdf1 {[%clk 0:10:18]}  Rb8 {[%clk 0:14:21]} 20. Ka2 {[%clk 0:10:08]}  Kf8 {[%clk 0:14:14]} 21. g3 {[%clk 0:09:59]}  Bg4 {[%clk 0:13:31]} 22. Qe3 {[%clk 0:10:03]}  Ra5 {[%clk 0:12:17]} 23. Nd2 {[%clk 0:08:27]}  Bd7 {[%clk 0:12:25]} 24. Qe2 {[%clk 0:08:20]}  Qe8 {[%clk 0:12:20]} 25. f3 {[%clk 0:08:01]}  Kg8 {[%clk 0:12:14]} 26. Rh2 {[%clk 0:08:04]}  Bh8 {[%clk 0:11:24]} 27. Ka1 {[%clk 0:07:46]}  Qe7 {[%clk 0:11:19]} 28. Qe3 {[%clk 0:07:41]}  Bf6 {[%clk 0:11:26]} 29. Qe1 {[%clk 0:07:43]}  Qe8 {[%clk 0:11:21]} 30. Qc1 {[%clk 0:07:14]}  Qe7 {[%clk 0:10:53]} 31. Qc2 {[%clk 0:07:09]}  Ra6 {[%clk 0:10:38]} 32. f4 {[%clk 0:06:34]}  Qe8 {[%clk 0:09:51]} 33. f5 {[%clk 0:05:46]}  Bg5 {[%clk 0:09:54]} 34. Nf3 {[%clk 0:05:17]}  Be3 {[%clk 0:09:00]} 35. Re1 {[%clk 0:05:24]}  Bd4 {[%clk 0:09:06]} 36. g4 {[%clk 0:05:32]}  g5 {[%clk 0:08:41]} 37. Nxg5 {[%clk 0:03:20]}  b5 {[%clk 0:08:48]} 38. cxb5 {[%clk 0:03:24]}  Bxb5 {[%clk 0:08:24]} 39. Nf3 {[%clk 0:03:20]}  Bxd3 {[%clk 0:07:31]} 40. Qxd3 {[%clk 0:03:29]}  Rab6 {[%clk 0:07:33]} 41. Rc2 {[%clk 0:03:31]}  Rb3 {[%clk 0:07:40]} 42. Qd2 {[%clk 0:02:35]}  Kf8 {[%clk 0:06:04]} 43. Qg5 {[%clk 0:01:59]}  Qe7 {[%clk 0:01:19]} 44. f6 {[%clk 0:01:47]}  Qd8 {[%clk 0:01:28]} 45. Nxe5 {[%clk 0:01:05]}  Ne8 {[%clk 0:00:55]} 46. Nc6 {[%clk 0:01:14]}  Bxf6 {[%clk 0:00:46]} 47. Qf5 {[%clk 0:01:12]}  Qc8 {[%clk 0:00:25]} 48. Nxb8 {[%clk 0:01:17]}  Qxb8 {[%clk 0:00:32]} 49. e5 {[%clk 0:01:22]} 1-0


[Site "http://www.chessbomb.com"]